bitfinex-derivatives/quotes_SOLF0:USTF0_20251020
["timestamp","ask_amount","ask_price","bid_price","bid_amount"]
[1760969865156,2.63,190.99,190.95,4.7129]
[1760969865353,4.82291524,190.98,190.93,7.3435]
[1760969865656,2.19291524,190.98,190.9,2.63]
[1760969866258,2.63,191.0,190.92,2.63]
[1760969866465,4.82291524,191.0,190.92,2.63]
[1760969867366,2.19291524,190.99,190.95,7.3429]
[1760969867667,4.82291524,190.99,190.95,4.7129]
[1760969867866,2.63,190.98,190.95,4.7129]
[1760969868472,4.82291524,190.99,190.95,4.7129]
[1760969868774,4.82291524,190.99,190.95,7.3429]
[1760969868970,2.19291524,190.99,190.95,7.3429]
[1760969869463,2.19291524,190.99,190.96,2.62]
[1760969870772,5.01291524,190.99,190.95,7.3329]
[1760969871561,2.82,191.04,190.98,4.7123]
[1760969871769,2.19291524,191.02,190.98,7.3323]
[1760969871974,2.19291524,191.0,190.93,2.62]
[1760969872175,2.19291524,191.0,190.97,2.62]
[1760969872467,2.19291524,191.02,190.97,2.62]
[1760969873068,5.01291524,191.02,190.97,2.62]
[1760969873263,2.19291524,191.0,190.9,2.62]
[1760969873669,2.19291524,190.98,190.9,2.62]
[1760969874269,2.19291524,190.98,190.92,4.7137]
[1760969874573,2.19291524,190.98,190.93,2.62]
[1760969874968,2.19291524,190.98,190.94,2.62]
[1760969875470,2.19291524,191.0,190.96,7.3327]
[1760969875670,2.19291524,190.97,190.88,2.62]
[1760969875869,2.19291524,190.95,190.88,2.62]
[1760969876063,2.19291524,190.95,190.91,2.62]
[1760969876469,5.01291524,190.97,190.91,2.62]
[1760969876669,2.19291524,190.97,190.91,2.62]
[1760969876868,2.19291524,190.97,190.92,7.3337]
[1760969877063,2.19291524,190.95,190.88,2.62]
[1760969877269,5.01291524,190.96,190.91,7.3339]
[1760969877469,5.01291524,190.96,190.92,2.62]
[1760969877470,2.82,190.96,190.92,2.62]
[1760969878272,2.82,190.96,190.91,4.7139]
[1760969878478,2.82,190.96,190.91,7.3339]
[1760969879673,2.82,190.96,190.92,4.7137]
[1760969879879,2.82,190.96,190.92,7.3337]
[1760969880378,2.82,190.96,190.92,4.7137]
[1760969880566,2.82,190.96,190.9,4.7142]
[1760969881071,2.82,190.96,190.9,7.3342]
[1760969881281,2.82,190.96,190.9,4.7142]
[1760969882472,2.82,190.96,190.88,2.62]
[1760969882670,2.82,190.93,190.84,2.62]
[1760969884073,7.97085216,190.92,190.84,2.62]
[1760969884272,5.15085216,190.91,190.84,2.62]
[1760969884476,2.82,190.92,190.85,7.3354]
[1760969884674,2.82,190.93,190.86,2.62]
[1760969884877,2.82,190.91,190.85,4.7155]
[1760969885076,2.82,190.91,190.82,2.62]
[1760969885576,2.82,190.91,190.84,2.62]
[1760969885983,2.82,190.91,190.85,4.7153]
[1760969887084,2.82,190.91,190.84,2.62]
[1760969887881,2.82,190.91,190.82,4.7161]
[1760969887882,2.82,190.91,190.77,2.62]
[1760969888082,2.82,190.91,190.78,2.62]
[1760969888288,2.82,190.89,190.78,2.62]
[1760969888974,2.82,190.89,190.8,7.3368]
[1760969889178,2.82,190.91,190.81,2.62]
[1760969889381,2.82,190.89,190.81,2.62]
[1760969889590,2.82,190.85,190.78,4.7172]
[1760969890494,5.13471767,190.84,190.76,7.3377]
[1760969890787,2.82,190.83,190.76,7.3377]
[1760969891284,4.85722491,190.95,190.75,9.81213912]
[1760969891285,2.82,190.81,190.75,9.81213912]
[1760969892280,6.24792263,190.84,190.76,2.62]
[1760969892680,2.82,190.84,190.76,2.62]
[1760969892887,2.82,190.84,190.77,2.62]
[1760969894084,2.86,190.82,190.75,9.81213912]
[1760969894287,2.86,190.82,190.75,12.59213912]
[1760969895894,2.86,190.82,190.75,9.81213912]
[1760969896681,2.86,190.8,190.75,9.81213912]
[1760969897988,2.86,190.8,190.75,12.59213912]
[1760969898187,2.86,190.8,190.75,9.81213912]
[1760969898885,7.89440062,190.84,190.76,2.7]
[1760969899089,5.10440062,190.83,190.76,2.7]
[1760969899294,2.79,190.84,190.76,2.7]
[1760969899493,5.1028222,190.83,190.76,2.7]
[1760969899694,2.79,190.84,190.76,2.7]
[1760969899992,5.10278898,190.83,190.76,2.7]
[1760969900188,2.79,190.83,190.76,2.7]
[1760969901577,2.79,190.83,190.76,6.12792263]
[1760969902885,2.79,190.83,190.77,2.7]
[1760969903587,2.79,190.88,190.77,2.7]
[1760969903788,2.79,190.88,190.8,2.7]
[1760969907287,2.79,190.86,190.78,3.42792263]
[1760969907686,7.5054,190.86,190.76,6.12792263]
[1760969907899,2.79,190.85,190.76,2.7]
[1760969908395,2.79,190.85,190.77,2.7]
[1760969909394,2.79,190.89,190.79,2.7]
[1760969909598,5.1939042,190.88,190.79,2.7]
[1760969909794,5.1939042,190.87,190.79,2.7]
[1760969909992,5.1939042,190.86,190.79,2.7]
[1760969910190,2.79,190.89,190.8,4.7167]
[1760969910387,5.19587696,190.88,190.81,2.7]
[1760969910584,5.19587696,190.87,190.81,2.7]
[1760969910794,2.79,190.89,190.81,2.7]
[1760969910996,5.19722239,190.88,190.81,2.7]
[1760969911190,5.19722239,190.87,190.81,2.7]
[1760969911391,2.79,190.88,190.81,2.7]
[1760969911599,5.19795989,190.87,190.81,2.7]
[1760969911792,2.79,190.88,190.82,2.7]
[1760969911997,5.19742818,190.87,190.82,2.7]
[1760969912296,2.79,190.88,190.82,2.7]
[1760969912490,7.98991887,190.87,190.82,2.7]
[1760969912695,7.98981926,190.86,190.79,4.7171]
[1760969912897,2.79,190.86,190.79,4.7171]
[1760969913094,11.41813872,190.85,190.77,7.4175]
[1760969913399,5.20021609,190.84,190.77,7.4175]
[1760969913598,2.79,190.85,190.77,7.4175]
[1760969913787,5.20203757,190.84,190.78,2.7]
[1760969913989,2.79,190.85,190.78,2.7]
[1760969914190,6.21792263,190.83,190.75,9.81213912]
[1760969914389,7.99155752,190.82,190.76,2.7]
[1760969914602,2.79,190.82,190.76,2.7]
[1760969915600,7.99371067,190.81,190.76,2.7]
[1760969915800,2.79,190.81,190.76,2.7]
[1760969918299,5.2110234,190.8,190.76,2.7]
[1760969918599,2.79,190.81,190.76,2.7]
[1760969918800,8.00130018,190.8,190.76,2.7]
[1760969919104,5.21130018,190.79,190.76,2.7]
[1760969919403,5.21130018,190.78,190.76,2.7]
[1760969919595,5.21130018,190.78,190.75,14.53003912]
[1760969919596,2.79,190.8,190.75,14.53003912]
[1760969919790,7.99990373,190.79,190.75,14.53003912]
[1760969919995,5.20990373,190.78,190.75,14.53003912]
[1760969920195,2.79,190.79,190.75,14.53003912]
[1760969920699,7.5065,190.82,190.76,2.7]
[1760969920893,5.08250915,190.81,190.76,2.7]
[1760969921204,2.79,190.79,190.75,17.23003912]
[1760969921405,5.08250915,190.78,190.75,17.23003912]
[1760969921597,2.79,190.79,190.75,17.23003912]
[1760969921804,2.79,190.77,190.75,9.81213912]
[1760969922009,5.0849612,190.76,190.75,9.81213912]
[1760969923810,5.0849612,190.76,190.75,12.51213912]
[1760969924005,2.79,190.8,190.76,2.7]
[1760969924213,5.07525988,190.79,190.76,2.7]
[1760969924504,4.7162,190.83,190.77,2.7]
[1760969924711,3.42792263,190.84,190.77,2.7]
[1760969924902,2.79,190.85,190.77,2.7]
[1760969925507,6.21792263,190.85,190.77,2.7]
[1760969925909,2.79,190.84,190.77,2.7]
[1760969926309,4.7163,190.83,190.77,2.7]
[1760969926509,3.42792263,190.83,190.77,2.7]
[1760969926899,2.79,190.84,190.77,2.7]
[1760969927505,7.47499504,190.87,190.8,2.7]
[1760969927801,2.79,190.87,190.8,2.7]
[1760969928008,4.7155,190.86,190.8,2.7]
[1760969928211,8.14342263,190.86,190.8,2.7]
[1760969928910,11.03342263,190.86,190.8,2.7]
[1760969929108,7.6058,190.85,190.8,2.7]
[1760969929307,2.89,190.84,190.77,4.7175]
[1760969929612,4.7167,190.81,190.76,2.72]
[1760969929814,2.89,190.82,190.76,2.72]
[1760969931007,7.6066,190.82,190.76,2.72]
[1760969931207,2.89,190.81,190.76,2.72]
[1760969931808,3.42792263,190.83,190.77,2.72]
[1760969932208,6.31792263,190.83,190.77,2.72]
[1760969932407,11.03422263,190.83,190.77,7.4375]
[1760969932816,11.03422263,190.83,190.77,2.72]
[1760969933411,4.09491831,190.82,190.76,2.72]
[1760969933720,2.89,190.87,190.76,2.72]
[1760969933909,8.79546474,190.86,190.76,2.72]
[1760969934110,4.0952403,190.85,190.76,2.72]
[1760969934310,4.0952403,190.84,190.76,2.72]
[1760969934512,7.6053,190.87,190.76,2.72]
[1760969934714,8.79797378,190.86,190.76,2.72]
[1760969934910,4.0961829,190.85,190.76,2.72]
[1760969935111,4.0961829,190.84,190.8,2.72]
[1760969935313,4.7155,190.86,190.8,2.72]
[1760969935508,6.98674762,190.85,190.8,2.72]
[1760969935818,6.98674762,190.84,190.8,2.72]
[1760969936019,2.89,190.84,190.8,2.72]
[1760969936212,4.7155,190.86,190.8,2.72]
[1760969936417,6.98648323,190.85,190.8,2.72]
[1760969936618,6.31792263,190.85,190.76,2.72]
[1760969937217,2.89,190.85,190.77,2.72]
[1760969937620,4.09615469,190.84,190.77,2.72]
[1760969937820,2.89,190.85,190.77,2.72]
[1760969938017,2.89,190.85,190.76,2.72]
[1760969939120,2.89,190.85,190.81,2.72]
[1760969939626,2.89,190.85,190.81,7.4364]
[1760969939810,4.7147,190.89,190.82,2.72]
[1760969939811,8.40487182,190.88,190.82,2.72]
[1760969940016,4.07312522,190.87,190.82,2.72]
[1760969940216,7.6046,190.89,190.82,7.4361]
[1760969940427,4.07308889,190.88,190.82,7.4361]
[1760969940625,6.96308889,190.87,190.83,2.72]
[1760969940824,5.08619185,190.87,190.83,2.72]
[1760969942421,2.19619185,190.87,190.83,2.72]
[1760969942620,2.19619185,190.91,190.84,2.72]
[1760969942926,8.40331965,190.94,190.86,2.72]
[1760969943126,4.07358063,190.93,190.86,2.72]
[1760969943422,4.0713409,190.92,190.87,2.72]
[1760969943725,9.15729319,190.91,190.87,2.72]
[1760969943928,5.08619185,190.91,190.87,2.72]
[1760969944124,4.80718732,190.95,190.84,2.72]
[1760969944125,2.19619185,190.89,190.84,2.72]
[1760969944425,2.19619185,190.9,190.84,2.72]
[1760969944726,2.19619185,190.9,190.85,4.7154]
[1760969944919,2.19619185,190.9,190.86,2.72]
[1760969945533,2.19619185,190.9,190.86,7.4351]
[1760969945928,5.08619185,190.9,190.86,2.72]
[1760969946227,5.08619185,190.88,190.81,2.72]
[1760969946421,2.19619185,190.87,190.81,2.72]
[1760969947024,2.19619185,190.87,190.83,2.72]
[1760969947333,5.08619185,190.87,190.83,2.72]
[1760969948232,2.89,190.86,190.82,7.4363]
[1760969948431,5.08619185,190.87,190.82,7.4363]
[1760969948833,5.08619185,190.87,190.83,2.72]
[1760969949729,5.08619185,190.87,190.84,2.72]
[1760969949936,2.19619185,190.87,190.84,2.72]
[1760969951531,4.07355308,190.9,190.84,2.72]
[1760969951734,2.19619185,190.88,190.84,2.72]
[1760969952229,2.19619185,190.9,190.84,2.72]
[1760969952432,6.27260519,190.92,190.84,2.72]
[1760969952628,2.19619185,190.92,190.84,2.72]
[1760969953226,2.19619185,190.9,190.79,2.72]
[1760969953424,2.89,190.91,190.8,2.72]
[1760969953425,2.19619185,190.88,190.8,2.72]
[1760969954035,2.19619185,190.88,190.81,2.72]
[1760969954337,2.19619185,190.89,190.81,2.72]
[1760969954835,2.19619185,190.87,190.84,7.4557]
[1760969955232,2.19619185,190.85,190.78,2.74]
[1760969956733,2.19619185,190.85,190.82,4.7162]
[1760969956935,2.19619185,190.85,190.83,2.74]
[1760969957936,2.19619185,190.87,190.83,2.74]
[1760969958433,4.86619185,190.87,190.83,2.74]
[1760969959337,5.02619185,190.87,190.79,2.69]
[1760969959539,5.02619185,190.87,190.81,2.69]
[1760969960334,2.83,190.86,190.82,7.4062]
[1760969960528,2.83,190.86,190.82,2.69]
[1760969964427,2.83,190.84,190.79,7.407]
[1760969965340,2.83,190.84,190.8,2.69]
[1760969966331,4.80718732,190.92,190.81,2.69]
[1760969966636,5.02619185,190.86,190.81,2.69]
[1760969966834,2.83,190.85,190.81,2.69]
[1760969967834,5.02619185,190.84,190.8,4.7167]
[1760969968139,2.83,190.83,190.8,4.7167]
[1760969968729,2.83,190.83,190.8,2.69]
[1760969968928,2.83,190.83,190.78,4.7172]
[1760969969232,2.83,190.83,190.78,7.4072]
[1760969970152,2.83,190.83,190.79,2.69]
[1760969971340,2.19619185,190.86,190.79,2.69]
[1760969971541,2.83,190.85,190.79,2.69]
[1760969972642,2.83,190.83,190.75,12.50213912]
[1760969972839,2.83,190.83,190.76,2.69]
[1760969973239,2.83,190.83,190.76,4.88619185]
[1760969973936,7.5462,190.83,190.76,9.60379185]
[1760969974130,7.5462,190.83,190.76,4.88619185]
[1760969974945,7.5462,190.83,190.77,4.7175]
[1760969976845,2.83,190.83,190.77,4.7175]
[1760969978544,2.83,190.83,190.78,2.69]
[1760969980540,2.83,190.82,190.77,4.7175]
[1760969980736,2.83,190.82,190.77,2.69]
[1760969981736,2.83,190.81,190.77,2.69]
[1760969983843,5.02619185,190.86,190.79,2.69]
[1760969984042,4.09724779,190.85,190.79,2.69]
[1760969984238,2.83,190.83,190.76,4.88619185]
[1760969984437,2.83,190.83,190.76,2.19619185]
[1760969984636,2.83,190.83,190.76,4.88619185]
[1760969984834,2.83,190.83,190.77,2.69]
[1760969985839,7.5463,190.83,190.79,2.69]
[1760969986038,2.83,190.83,190.79,2.69]
[1760969986640,2.19619185,190.86,190.78,4.7171]
[1760969986641,8.81234551,190.85,190.8,2.69]
[1760969986940,2.83,190.87,190.83,2.69]
[1760969987147,2.83,190.87,190.84,2.69]
[1760969987444,4.09754445,190.89,190.84,2.69]
[1760969987746,2.83,190.87,190.83,4.7159]
[1760969987947,2.83,190.89,190.84,2.69]
[1760969988338,2.83,190.89,190.85,2.19619185]
[1760969988647,2.83,190.89,190.84,7.4056]
[1760969989542,2.61,190.87,190.83,4.94619185]
[1760969989941,2.61,190.87,190.83,9.66209185]
[1760969990137,4.7147,190.89,190.83,6.91209185]
[1760969990339,2.61,190.88,190.84,2.75]
[1760969990741,7.36745475,190.9,190.86,2.75]
[1760969990943,2.61,190.9,190.86,2.75]
[1760969991444,2.61,190.9,190.86,7.4652]
[1760969991650,2.61,190.9,190.86,2.75]
[1760969992351,2.61,190.93,190.87,2.19619185]
[1760969992652,2.61,190.91,190.87,4.94619185]
[1760969992843,6.70907176,190.9,190.87,4.94619185]
[1760969993050,2.61,190.9,190.85,4.94619185]
[1760969993350,2.61,190.9,190.86,2.75]
[1760969995446,2.61,190.9,190.85,2.19619185]
[1760969995648,2.61,190.88,190.81,2.19619185]
[1760969995848,2.61,190.88,190.81,4.94619185]
[1760969996357,8.50230903,190.9,190.78,2.19619185]
[1760969996358,2.61,190.85,190.78,2.19619185]
[1760969996855,2.61,190.85,190.78,4.94619185]
[1760969997552,2.61,190.84,190.78,7.4672]
[1760969997749,2.61,190.84,190.79,2.75]
[1760969998454,2.61,190.84,190.76,9.66389185]
[1760970000156,2.19619185,190.85,190.76,9.66389185]
[1760970000352,2.19619185,190.85,190.75,9.81213912]
[1760970000353,2.61,190.8,190.75,9.81213912]
[1760970000553,2.61,190.78,190.75,9.81213912]
[1760970001152,2.61,190.78,190.75,12.56213912]
[1760970001761,2.61,190.87,190.75,12.56213912]
[1760970002060,2.61,190.85,190.75,12.56213912]
[1760970002250,2.61,190.83,190.75,12.56213912]
[1760970002651,4.7167,190.81,190.75,12.56213912]
[1760970003263,4.717,190.8,190.75,9.81213912]
[1760970003457,2.61,190.79,190.75,9.81213912]
[1760970003656,2.61,190.79,190.75,12.56213912]
[1760970003854,3.43496899,190.86,190.75,9.81213912]
[1760970003855,2.61,190.77,190.75,9.81213912]
[1760970004458,2.61,190.76,190.75,9.81213912]
[1760970004758,2.61,190.79,190.75,9.81213912]
[1760970004956,2.61,190.82,190.76,2.75]
[1760970005360,2.61,190.85,190.77,2.75]
[1760970005563,2.61,190.85,190.78,2.75]
[1760970005960,2.61,190.85,190.79,2.75]
[1760970006861,2.61,190.84,190.78,4.7171]
[1760970007563,4.7157,190.85,190.79,2.75]
[1760970008972,7.325,190.88,190.81,2.75]
[1760970009263,4.85508018,190.87,190.81,2.75]
[1760970009458,7.325,190.88,190.81,2.75]
[1760970009656,13.63334302,190.87,190.81,2.75]
[1760970009861,4.85520986,190.86,190.81,2.75]
[1760970010061,2.61,190.88,190.81,2.75]
[1760970010258,2.61,190.86,190.8,4.7167]
[1760970010863,4.7149,190.88,190.81,2.75]
[1760970011162,8.91961111,190.87,190.81,2.75]
[1760970011362,7.4660365,190.86,190.81,2.75]
[1760970011563,2.61,190.86,190.78,10.90216899]
[1760970011870,2.61,190.86,190.78,8.15216899]
[1760970012069,7.3255,190.86,190.79,2.75]
[1760970012363,2.61,190.86,190.79,2.75]
[1760970013171,4.7155,190.86,190.8,2.75]
[1760970015175,7.5755,190.86,190.8,2.75]
[1760970017573,4.7155,190.86,190.8,2.75]
[1760970017778,7.5755,190.86,190.8,2.75]
[1760970018383,2.86,190.86,190.81,2.81]
[1760970021179,2.87,190.85,190.81,2.81]
[1760970023272,4.06598287,190.87,190.82,2.85]
[1760970023475,2.87,190.88,190.82,2.85]
[1760970023786,8.9257986,190.87,190.84,2.85]
[1760970024087,2.87,190.88,190.84,2.85]
[1760970024285,8.92504046,190.87,190.84,2.85]
[1760970024485,2.87,190.92,190.84,2.85]
[1760970024780,8.92594196,190.91,190.88,2.85]
[1760970024980,4.06657732,190.9,190.88,2.85]
[1760970025172,7.67718732,190.95,190.9,2.85]
[1760970025385,12.54254923,190.94,190.9,2.85]
[1760970025589,4.06631202,190.93,190.92,6.28496899]
[1760970026174,4.06631202,190.93,190.92,10.99856899]
[1760970026674,4.80718732,190.99,190.84,9.4313]
[1760970026878,7.67718732,190.99,190.94,3.43496899]
[1760970027080,4.80718732,190.99,190.94,3.43496899]
[1760970027274,9.18035628,191.0,190.97,3.43496899]
[1760970027481,9.28204241,191.03,190.97,3.43496899]
[1760970027482,4.80718732,191.02,190.97,3.43496899]
[1760970027683,7.67718732,191.03,190.97,3.43496899]
[1760970028485,9.1770706,191.03,191.0,3.43496899]
[1760970028686,7.67718732,191.02,190.98,0.66]
[1760970028891,2.87,191.02,190.98,0.66]
[1760970029079,7.67718732,191.03,190.98,0.66]
[1760970029280,2.87,191.03,190.98,0.66]
[1760970029492,2.87,191.02,190.98,0.66]
[1760970029992,2.87,191.02,190.95,4.713]
[1760970030289,2.87,191.02,190.96,0.66]
[1760970030486,2.87,191.02,190.9,3.43496899]
[1760970030487,4.80718732,191.05,190.99,0.66]
[1760970030787,7.67718732,191.06,191.02,0.66]
[1760970030992,4.80718732,191.08,191.02,0.66]
[1760970031197,7.5797,191.09,191.02,0.66]
[1760970031198,12.38688732,191.09,191.02,0.66]
[1760970031581,2.87,191.09,191.02,0.66]
[1760970032494,2.87,191.08,190.99,4.7119]
[1760970032694,2.87,191.06,190.98,0.66]
[1760970032995,2.87,191.06,190.99,0.66]
[1760970033494,2.87,191.1,191.0,0.66]
[1760970034103,2.87,191.1,191.01,4.7114]
[1760970034697,2.87,191.1,191.01,5.3714]
[1760970034893,2.87,191.1,191.02,5.3711]
[1760970035093,2.87,191.1,191.03,0.66]
[1760970035701,2.87,191.1,191.04,3.43496899]
[1760970035894,2.87,191.1,191.05,0.66]
[1760970036196,2.87,191.14,191.05,0.66]
[1760970036396,2.87,191.14,191.06,5.3702]
[1760970036600,2.87,191.14,190.93,9.427]
[1760970036898,2.87,191.1,191.01,4.7116]
[1760970037496,2.87,191.1,191.01,5.3716]
[1760970037701,2.87,191.1,191.02,0.66]
[1760970037904,2.87,191.1,191.03,0.66]
[1760970038508,7.5785,191.14,191.03,4.7109]
[1760970038698,6.72446335,191.13,191.04,0.66]
[1760970039201,2.87,191.13,191.06,0.66]
[1760970041103,2.87,191.13,191.07,4.71]
[1760970041506,2.87,191.13,191.05,4.7106]
[1760970041696,2.87,191.13,191.02,0.66]
[1760970043000,4.7094,191.11,191.02,5.3712]
[1760970043196,2.87,191.1,191.02,5.3712]
[1760970043400,2.87,191.1,191.02,0.66]
[1760970044105,7.5796,191.1,191.02,0.66]
[1760970044409,2.87,191.09,191.02,0.66]
[1760970046013,2.87,191.12,191.04,3.43496899]
[1760970046208,2.87,191.12,191.04,4.09496899]
[1760970046506,2.87,191.12,191.07,4.7101]
[1760970046808,2.87,191.16,191.08,0.66]
[1760970047003,2.87,191.16,191.09,4.7097]
[1760970047406,2.87,191.16,191.08,0.66]
[1760970048107,7.5781,191.16,191.08,5.3698]
[1760970049312,7.5781,191.16,191.09,4.7095]
[1760970049710,2.83,191.14,191.04,0.65]
[1760970050012,2.83,191.14,191.07,3.43496899]
[1760970050206,2.83,191.14,191.07,4.08496899]
[1760970052016,2.83,191.14,191.09,4.7095]
[1760970052206,2.83,191.14,191.09,5.3595]
[1760970052807,2.83,191.14,191.09,4.7095]
[1760970054413,2.83,191.14,191.09,5.3595]
[1760970054801,2.83,191.19,191.1,0.65]
[1760970056117,2.83,191.18,191.12,4.7088]
[1760970057519,2.83,191.17,191.1,4.7094]
[1760970057815,2.83,191.17,191.08,0.65]
[1760970058608,2.83,191.16,191.09,4.7096]
[1760970059920,7.5382,191.16,191.1,4.7093]
[1760970060518,2.83,191.15,191.1,4.7093]
[1760970060818,2.83,191.15,191.09,2.18976854]
[1760970060819,7.5384,191.15,191.09,2.18976854]
[1760970061021,2.83,191.14,191.07,2.18976854]
[1760970061207,2.83,191.12,191.03,2.18976854]
[1760970061408,2.83,191.1,191.03,2.18976854]
[1760970061816,2.18976854,191.09,191.02,0.65]
[1760970062013,2.18976854,191.11,191.05,0.65]
[1760970062215,5.01976854,191.11,191.05,0.65]
[1760970062607,2.18976854,191.11,191.05,0.65]
[1760970062814,2.83,191.1,191.05,0.65]
[1760970063019,9.4145,191.19,191.05,5.3605]
[1760970063020,7.5389,191.13,191.05,5.3605]
[1760970063220,2.18976854,191.12,191.05,0.65]
[1760970063417,2.83,191.11,191.04,2.18976854]
[1760970063816,2.83,191.11,191.05,4.7105]
[1760970064016,2.83,191.11,191.06,2.83976854]
[1760970064719,2.83,191.16,191.08,2.18976854]
[1760970064911,2.83,191.15,191.08,2.83976854]
[1760970065224,2.83,191.15,191.11,0.65]
[1760970065915,2.83,191.15,191.11,5.3591]
[1760970066122,2.18976854,191.18,191.11,0.65]
[1760970066320,2.83,191.17,191.11,0.65]
[1760970066723,2.83,191.17,191.12,4.7088]
[1760970067321,6.89686854,191.2,191.13,2.18976854]
[1760970067523,2.83,191.21,191.15,2.18976854]
[1760970067822,2.83,191.21,191.15,2.83976854]
[1760970068025,2.83,191.21,191.15,7.54786854]
[1760970068225,2.83,191.21,191.08,2.7]
[1760970068226,2.83,191.21,191.17,2.83976854]
[1760970069118,4.7061,191.24,191.18,4.7075]
[1760970069322,7.5361,191.24,191.18,4.7075]
[1760970069616,2.83,191.24,191.18,4.7075]
[1760970069823,2.83,191.27,191.23,2.18976854]
[1760970070224,2.83,191.27,191.23,2.83976854]
[1760970070521,2.83,191.31,191.26,2.18976854]
[1760970070828,2.83,191.31,191.29,2.18976854]
[1760970071126,6.68556264,191.35,191.29,2.18976854]
[1760970071330,2.83,191.35,191.29,2.18976854]
[1760970071625,2.83,191.35,191.31,2.18976854]
[1760970071928,3.85556264,191.37,191.31,2.18976854]
[1760970072221,3.85556264,191.38,191.33,2.18976854]
[1760970072531,2.83,191.41,191.36,0.65]
[1760970073225,6.04713432,191.43,191.36,0.65]
[1760970073427,3.85736578,191.44,191.36,0.65]
[1760970074128,2.18976854,191.37,191.32,0.65]
[1760970074319,2.18976854,191.35,191.27,12.62]
[1760970074625,2.18976854,191.31,191.27,4.7052]
[1760970074825,7.63938137,191.36,191.28,0.65]
[1760970075128,2.63,191.35,191.28,0.65]
[1760970075927,2.63,191.28,191.09,5.00938137]
[1760970076118,2.63,191.28,191.11,0.65]
[1760970076718,7.63938137,191.25,191.11,0.65]
[1760970076940,5.00938137,191.27,191.11,0.65]
[1760970077123,5.00938137,191.27,191.1,11.52]
[1760970077124,2.63,191.29,191.13,5.00938137]
[1760970077321,2.63,191.33,191.17,5.00938137]
[1760970077527,2.63,191.38,191.19,0.65]
[1760970078026,5.00938137,191.39,191.27,0.65]
[1760970078027,2.63,191.37,191.27,0.65]
[1760970078926,8.72,191.48,191.17,5.00938137]
[1760970078927,2.86,191.34,191.17,5.00938137]
[1760970079131,2.86,191.34,191.22,0.66]
[1760970079731,2.86,191.34,191.23,0.66]
[1760970080421,7.5635,191.34,191.23,0.66]
[1760970080726,2.86,191.32,191.23,0.66]
[1760970081314,2.86,191.31,191.23,0.66]
[1760970081530,2.86,191.31,191.2,0.66]
[1760970081827,4.7048,191.29,191.2,0.66]
[1760970082028,7.5648,191.29,191.2,0.66]
[1760970082729,7.5653,191.28,191.2,0.66]
[1760970082929,2.86,191.28,191.1,0.66]
[1760970083122,4.80718732,191.39,191.1,0.66]
[1760970083123,2.86,191.24,191.1,0.66]
[1760970083526,2.86,191.22,191.11,0.66]
[1760970083732,2.86,191.2,191.11,0.66]
[1760970083920,2.86,191.2,191.07,0.66]
[1760970084630,5.00938137,191.23,191.1,0.66]
[1760970084825,7.86938137,191.25,191.1,0.66]